bitfinex-derivatives/quotes_ETHF0:USTF0_20250317
["timestamp","ask_amount","ask_price","bid_price","bid_amount"]
[1742240294045,2.0744,1945.2,1945.1,1.02826]
[1742240294243,3.10265,1945.2,1945.1,1.02826]
[1742240294845,2.0744,1945.2,1945.1,1.02826]
[1742240296137,1.363,1945.2,1945.1,1.02826]
[1742240296338,1.363,1945.2,1945.1,1.74446]
[1742240296844,3.42170179,1945.5,1945.4,1.02814]
[1742240297050,0.00770179,1945.5,1945.4,1.02814]
[1742240297753,0.00770179,1945.5,1945.4,4.23594]
[1742240298435,0.00770179,1945.5,1945.4,1.02814]
[1742240298633,0.00770179,1945.5,1945.4,1.68284]
[1742240298837,1.02814,1945.4,1945.3,2.36558]
[1742240299040,3.07934,1945.4,1945.3,1.0282]
[1742240299241,2.0512,1945.4,1945.3,1.0282]
[1742240299448,5.259,1945.4,1945.2,3.04612]
[1742240299643,1.388,1945.3,1945.2,1.02822]
[1742240299839,2.4162,1945.3,1945.2,1.02822]
[1742240300049,43.2162,1945.3,1945.2,1.02822]
[1742240300748,43.21625,1945.3,1945.2,1.02825]
[1742240301746,43.21625,1945.3,1945.2,2.41365]
[1742240302142,1.0283,1945.2,1945.1,1.02829]
[1742240302339,1.0283,1945.1,1945.0,3.09141]
[1742240302545,0.7189,1945.1,1945.0,1.02831]
[1742240302743,1.4241,1945.1,1945.0,1.02831]
[1742240302944,3.7661,1945.1,1945.0,2.41371]
[1742240303248,3.7661,1945.1,1945.0,1.02831]
[1742240304553,3.7661,1945.1,1944.8,5.35693]
[1742240304554,1.02846,1944.9,1944.8,1.02841]
[1742240304847,1.02857,1944.7,1944.6,1.02853]
[1742240305549,3.05207,1944.7,1944.6,1.02853]
[1742240305743,1.02862,1944.6,1944.5,1.02859]
[1742240305947,5.77662,1944.6,1944.5,1.02859]
[1742240306448,1.0289,1944.1,1944.0,1.02885]
[1742240306650,1.02898,1943.9,1943.8,1.02893]
[1742240306846,3.04773,1944.0,1943.9,1.02894]
[1742240307040,1.72143179,1944.0,1943.9,1.02894]
[1742240307347,1.72138179,1944.0,1943.9,1.02894]
[1742240307549,0.69250179,1944.0,1943.9,1.02894]
[1742240307750,3.42170179,1944.0,1943.9,1.02894]
[1742240307948,0.00770179,1944.0,1943.9,1.02894]
[1742240309546,0.00770179,1944.0,1943.9,7.65074]
[1742240309944,6.6218,1944.4,1944.3,1.02873]
[1742240309945,3.2078,1944.4,1944.3,1.02873]
[1742240310347,3.414,1944.5,1944.4,1.02867]
[1742240310547,8.36222,1944.7,1944.3,2.57179]
[1742240310747,1.02857,1944.6,1944.5,1.02857]
[1742240310952,1.02862,1944.5,1944.4,2.42233]
[1742240311154,7.34140179,1944.7,1944.4,1.40140179]
[1742240311543,1.02862,1944.5,1944.4,0.00770179]
[1742240311752,1.02861,1944.6,1944.4,0.00770179]
[1742240311955,1.02861,1944.6,1944.4,1.03633179]
[1742240312156,1.02862,1944.5,1944.4,1.03633179]
[1742240312355,1.02858,1944.6,1944.5,1.02859]
[1742240312948,1.02862,1944.5,1944.4,0.00770179]
[1742240313253,8.32242,1944.5,1944.4,0.00770179]
[1742240313553,1.02883,1944.1,1944.0,1.02884]
[1742240313854,3.415,1944.2,1944.1,1.02883]
[1742240314050,4.23657,1944.3,1944.2,1.02878]
[1742240314252,6.6228,1944.3,1944.2,1.02878]
[1742240314454,3.415,1944.3,1944.2,1.02878]
[1742240314645,1.02874,1944.4,1944.3,1.02869]
[1742240315357,0.6622,1944.4,1944.3,1.02869]
[1742240315546,3.414,1944.5,1944.4,1.02867]
[1742240316351,4.44262,1944.5,1944.4,1.02867]
[1742240316758,3.414,1944.5,1944.4,1.02867]
[1742240316954,0.6622,1944.6,1944.5,1.02862]
[1742240317158,1.02865,1944.5,1944.4,1.02864]
[1742240317652,5.1058,1944.6,1944.5,1.02862]
[1742240317854,1.6908,1944.6,1944.5,1.02862]
[1742240318055,5.1058,1944.6,1944.5,1.02862]
[1742240318251,6.458,1944.6,1944.5,1.02862]
[1742240318451,1.0287,1944.4,1944.2,3.2668]
[1742240318653,1.3522,1944.3,1944.2,3.09588]
[1742240318864,2.38093,1944.3,1944.2,3.09588]
[1742240319056,3.09683,1944.3,1944.2,1.02878]
[1742240320153,1.02878,1944.2,1944.1,2.40099]
[1742240320359,7.34897,1944.2,1943.5,3.62188331]
[1742240320559,1.02887,1944.1,1944.0,1.02885]
[1742240320859,2.39087,1944.1,1944.0,1.02885]
[1742240321165,43.19087,1944.1,1944.0,1.02885]
[1742240321459,40.8,1944.1,1944.0,1.02885]
[1742240321758,43.19083,1944.1,1944.0,2.44845]
[1742240322559,1.362,1944.1,1944.0,2.44845]
[1742240322754,3.415,1944.2,1944.1,1.02883]
[1742240323270,4.8569,1944.2,1944.1,1.02883]
[1742240323561,1.4419,1944.2,1944.1,1.02883]
[1742240324463,49.10881,1944.4,1944.3,1.02873]
[1742240324464,47.4228,1944.4,1944.3,1.02873]
[1742240324663,6.6228,1944.4,1944.3,1.02873]
[1742240325161,3.2078,1944.4,1944.3,1.02873]
[1742240325862,4.6014,1944.4,1944.3,1.02873]
[1742240327165,1.3936,1944.4,1944.3,1.02873]
[1742240327656,1.0288,1944.2,1944.1,1.02882]
[1742240327864,4.0745,1944.3,1944.2,1.02878]
[1742240328063,5.10323,1944.3,1944.2,1.02878]
[1742240328258,4.0745,1944.3,1944.2,1.02878]
[1742240328865,3.415,1944.3,1944.2,1.02878]
[1742240329067,45.94635,1944.5,1944.4,1.02867]
[1742240329267,45.94635,1944.5,1944.3,3.04339]
[1742240329268,1.02867,1944.4,1944.3,3.04339]
[1742240329566,44.9177,1944.5,1944.4,1.02867]
[1742240329567,45.94635,1944.5,1944.4,1.02867]
[1742240329756,3.2078,1944.6,1944.5,1.02862]
[1742240329962,6.6228,1944.6,1944.5,1.02862]
[1742240330465,3.2078,1944.6,1944.5,1.71052]
[1742240331464,41.83621179,1944.7,1944.6,1.02857]
[1742240331668,41.83621179,1944.7,1944.6,2.38697]
[1742240332269,41.83627179,1944.7,1944.6,1.02857]
[1742240332456,41.83621179,1944.7,1944.6,1.02857]
[1742240332863,41.83621179,1944.7,1944.6,2.33397]
[1742240334469,40.80770179,1944.7,1944.6,2.33397]
[1742240334666,40.80770179,1944.7,1944.6,3.02667]
[1742240334968,0.00770179,1944.7,1944.6,3.02667]
[1742240335165,1.02826,1945.2,1945.1,1.0283]
[1742240335366,4.44326,1945.2,1945.1,1.0283]
[1742240335665,48.45106,1945.2,1945.1,1.0283]
[1742240336061,46.18728185,1945.2,1945.1,1.0283]
[1742240336668,49.39508185,1945.2,1945.1,1.0283]
[1742240336865,46.18728185,1945.2,1945.1,1.0283]
[1742240337569,41.74402185,1945.2,1945.1,1.0283]
[1742240337769,41.74402185,1945.2,1945.1,2.4321]
[1742240338065,40.8,1945.2,1945.1,2.4321]
[1742240338261,42.1563,1945.2,1945.1,2.4321]
[1742240338567,0.00770179,1945.3,1945.2,1.02825]
[1742240338756,1.3563,1945.5,1945.4,1.02814]
[1742240339865,1.3563,1945.5,1945.4,2.43194]
[1742240341369,0.00770179,1945.6,1945.5,1.02809]
[1742240341570,0.00770179,1945.6,1945.5,3.10369]
[1742240341768,1.3197,1945.8,1945.7,1.02798]
[1742240342472,3.2078,1945.9,1945.8,1.02793]
[1742240342668,4.5275,1945.9,1945.8,1.02793]
[1742240345175,1.3197,1945.9,1945.8,1.02793]
[1742240345476,0.00770179,1946.0,1945.9,1.02788]
[1742240345979,3.2078,1946.4,1946.3,1.02767]
[1742240346162,0.6764,1946.5,1946.4,1.02762]
[1742240346474,47.4208,1946.6,1946.5,1.02756]
[1742240346772,6.6208,1946.6,1946.5,1.02756]
[1742240347372,4.7386,1946.6,1946.5,2.33556]
[1742240347569,1.3256,1946.6,1946.5,2.33556]
[1742240348266,3.2078,1947.0,1946.6,1.02751]
[1742240348476,3.2078,1947.0,1946.9,1.02735]
[1742240348674,7.31196,1947.3,1946.7,1.308]
[1742240348976,4.23506,1947.1,1946.9,1.02733]
[1742240349276,7.64706,1947.1,1946.9,1.02733]
[1742240349777,1.3256,1947.0,1946.9,1.02733]
[1742240350170,1.3256,1947.0,1946.9,1.02735]
[1742240358676,1.02751,1946.6,1946.5,5.966]
[1742240358873,1.02756,1946.5,1946.4,1.03531179]
[1742240359067,2.37786,1946.5,1946.4,1.03531179]
[1742240359269,2.0083,1946.5,1946.4,1.03531179]
[1742240361367,3.03586,1946.5,1946.4,1.03531179]
[1742240361773,2.0083,1946.5,1946.4,1.03531179]
[1742240361980,3.03586,1946.5,1946.4,1.03531179]
[1742240362178,6.24366,1946.5,1946.4,0.00770179]
[1742240362579,2.0083,1946.5,1946.4,1.03532179]
[1742240362775,3.03586,1946.5,1946.4,1.03532179]
[1742240363280,3.03586,1946.5,1946.4,0.00770179]
[1742240364183,2.0083,1946.5,1946.4,1.03532179]
[1742240364386,3.03586,1946.5,1946.4,0.00770179]
[1742240365083,3.03586,1946.5,1946.4,1.03532179]
[1742240365282,2.0083,1946.5,1946.4,1.03532179]
[1742240365676,2.0083,1946.5,1946.4,1.72052179]
[1742240367089,3.03586,1946.5,1946.4,1.72052179]
[1742240367286,6.24366,1946.5,1946.4,0.00770179]
[1742240367584,6.24366,1946.5,1946.4,1.03532179]
[1742240367785,6.44586,1946.5,1946.4,0.00770179]
[1742240367986,9.65366,1946.5,1946.4,0.00770179]
[1742240368292,1.02776,1946.2,1946.1,1.02777]
[1742240368591,1.02777,1946.1,1946.0,2.40399]
[1742240368781,1.02777,1946.1,1946.0,1.02783]
[1742240368782,2.0413,1946.1,1946.0,1.02783]
[1742240369991,3.06907,1946.1,1946.0,1.02783]
[1742240370184,2.0413,1946.1,1946.0,1.02783]
[1742240370379,1.3737,1946.1,1946.0,1.68473]
[1742240370579,4.0776,1946.3,1946.2,1.02772]
[1742240371293,4.0776,1946.3,1946.1,1.72093]
[1742240371483,7.2854,1946.3,1946.1,1.72093]
[1742240371682,1.02772,1946.2,1946.1,1.72093]
[1742240371881,2.37882,1946.2,1946.1,1.72093]
[1742240372078,1.02777,1946.1,1946.0,2.42829]
[1742240372286,1.3511,1946.1,1946.0,2.42829]
[1742240372786,2.37887,1946.1,1946.0,2.42829]
[1742240372983,2.37887,1946.1,1946.0,1.4005]
[1742240373176,1.02783,1946.0,1945.9,0.00770179]
[1742240373490,3.05173,1946.0,1945.9,0.00770179]
[1742240373990,3.05173,1946.0,1945.9,1.03558179]
[1742240374383,3.05173,1946.0,1945.9,0.00770179]
[1742240374691,3.05173,1946.0,1945.9,1.03558179]
[1742240375986,3.05173,1946.0,1945.9,0.00770179]
[1742240378088,2.0239,1946.0,1945.5,0.6672]
[1742240378280,4.23584,1945.6,1945.5,2.44129]
[1742240378484,4.43804,1945.7,1945.6,1.02802]
[1742240378990,7.64584,1945.7,1945.6,1.02802]
[1742240379285,7.64584,1945.7,1945.5,1.42090179]
[1742240379286,3.41,1945.7,1945.5,1.42090179]
[1742240379491,2.40174,1945.6,1945.5,1.42090179]
[1742240379687,5.60954,1945.6,1945.5,0.00770179]
[1742240379884,6.33014,1945.6,1945.5,0.00770179]
[1742240380280,7.87225,1945.6,1945.2,1.02823]
[1742240380485,1.02824,1945.3,1945.2,1.02823]
[1742240380887,2.37444,1945.3,1945.2,2.46453]
[1742240381195,2.37444,1945.3,1945.1,1.3219]
[1742240381386,2.37445,1945.2,1945.1,0.6547]
[1742240381588,5.58225,1945.2,1945.1,0.6547]
[1742240381990,1.0283,1945.1,1945.0,2.47231179]
[1742240382281,2.3745,1945.1,1945.0,0.00770179]
[1742240382488,3.0575,1945.1,1945.0,1.03605179]
[1742240382790,3.0575,1945.1,1945.0,2.47235179]
[1742240383287,2.0292,1945.1,1945.0,2.47235179]
[1742240383494,1.3462,1945.1,1945.0,2.47235179]
[1742240386689,2.3745,1945.1,1945.0,2.47235179]
[1742240387002,2.3745,1945.1,1945.0,1.44400179]
[1742240387294,2.3745,1945.1,1945.0,0.00770179]
[1742240387797,5.5823,1945.1,1945.0,0.00770179]
[1742240388100,2.3745,1945.1,1945.0,1.03605179]
[1742240388290,2.3745,1945.1,1945.0,2.35395179]
[1742240388788,8.9933,1945.1,1945.0,0.00770179]
[1742240389394,2.57103,1944.9,1944.5,0.7085]
[1742240389590,2.57103,1944.9,1944.5,2.33511]
[1742240389591,1.02857,1944.6,1944.5,2.33511]
[1742240389785,1.02862,1944.5,1944.4,1.02864]
[1742240390196,5.74839,1944.6,1944.5,1.02862]
[1742240390501,1.02864,1944.5,1944.4,2.34284179]
[1742240390697,4.43959,1944.6,1944.5,1.02862]
[1742240391399,3.411,1944.6,1944.5,1.02862]
[1742240394502,3.21550179,1944.7,1944.6,1.02857]
[1742240394696,6.62750179,1944.7,1944.6,1.02857]
[1742240395295,0.00770179,1944.7,1944.6,1.02857]
[1742240398908,0.00770179,1944.7,1944.6,2.43397]
[1742240402003,5.22875665,1946.0,1944.6,2.43397]
[1742240402004,4.2359,1945.5,1945.1,2.57067]
[1742240402203,1.02814,1945.4,1945.3,1.02815]
[1742240402405,1.02814,1945.4,1945.3,2.34015]
[1742240402709,48.44793,1945.5,1945.3,2.34015]
[1742240403008,1.02814,1945.4,1945.3,2.34016]
[1742240403607,48.1088,1945.5,1945.4,1.02814]
[1742240403810,49.13689,1945.5,1945.4,2.34014]
[1742240404003,49.13689,1945.5,1945.4,1.312]
[1742240404203,49.13693,1945.5,1945.4,1.02814]
[1742240404704,49.84823,1945.5,1945.4,1.02814]
[1742240405904,48.8201,1945.5,1945.2,0.7054]
[1742240406110,1.02827,1945.2,1945.1,1.02824]
[1742240406307,3.412,1945.2,1945.1,1.02824]
[1742240407602,45.4081,1945.5,1945.1,1.02824]
[1742240407807,4.44016,1945.4,1945.3,1.02814]
[1742240408012,46.43623,1945.5,1945.4,1.02814]
[1742240408305,1.02818,1945.4,1945.2,1.3948]
[1742240408507,1.02829,1945.2,1945.1,1.02827]
[1742240408707,1.02827,1945.2,1945.1,1.02826]
[1742240408904,4.44027,1945.2,1945.1,1.02826]
[1742240409706,3.412,1945.2,1945.1,1.02826]
[1742240410105,4.8149,1945.2,1945.1,1.02826]
[1742240410301,3.411,1945.4,1945.3,1.0282]
[1742240411704,5.83094,1945.4,1945.3,2.4078]
[1742240411906,5.83094,1945.4,1945.3,1.7203]
[1742240412516,4.8028,1945.4,1945.3,1.7203]
[1742240413014,45.6028,1945.4,1945.3,1.7203]
[1742240413400,4.8028,1945.4,1945.3,1.7203]
[1742240413606,1.3918,1945.4,1945.3,1.7203]
[1742240416719,41.49220179,1945.6,1945.5,1.02809]
[1742240416913,42.20150179,1945.6,1945.5,1.02809]
[1742240417211,1.40150179,1945.6,1945.5,1.02809]
[1742240417416,1.40150179,1945.6,1945.5,2.46049]
[1742240418014,0.00770179,1945.6,1945.5,2.46049]
[1742240418517,1.3938,1945.8,1945.7,1.02798]
[1742240419316,1.3938,1945.8,1945.7,2.37328]
[1742240421621,0.70770179,1945.9,1945.7,2.37328]
[1742240421622,0.00770179,1945.9,1945.8,1.02793]
[1742240421825,0.00770179,1945.9,1945.8,2.38783]
[1742240422617,1.39660179,1945.9,1945.8,2.38783]
[1742240423026,2.09880179,1945.9,1945.8,2.38783]
[1742240423622,42.89880179,1945.9,1945.8,2.38783]
[1742240424318,2.09880179,1945.9,1945.8,2.38783]
[1742240424925,42.89880179,1945.9,1945.8,2.38783]
[1742240427224,1.39660179,1945.9,1945.8,2.38783]
[1742240427720,0.00770179,1945.9,1945.8,2.38783]
[1742240429218,1.37000179,1945.9,1945.8,2.38783]
[1742240430625,1.02798,1945.7,1945.6,0.00770179]
[1742240430810,2.41797,1945.8,1945.7,1.02798]
[1742240431010,1.02798,1945.7,1945.6,1.03569179]
[1742240431211,2.39028,1945.7,1945.6,1.03569179]
[1742240431413,2.39028,1945.7,1945.6,0.00770179]
[1742240431625,5.59808,1945.7,1945.6,0.00770179]
[1742240432121,5.59808,1945.7,1945.6,1.03574179]
[1742240433114,4.5701,1945.7,1945.6,1.03574179]
[1742240433522,1.3623,1945.7,1945.6,1.03574179]
[1742240433723,1.3623,1945.7,1945.6,2.43384179]
[1742240434425,3.41770179,1945.9,1945.8,1.02793]
[1742240434609,1.45130179,1945.9,1945.8,1.02793]
[1742240435126,1.45130179,1945.9,1945.8,2.42603]
[1742240435719,3.2078,1946.3,1946.2,1.02772]
[1742240437026,4.524,1946.3,1946.2,2.37912]
[1742240437926,5.55167,1946.3,1946.2,1.02772]
[1742240438120,4.524,1946.3,1946.2,1.02772]
[1742240438422,5.55167,1946.3,1946.2,1.02772]
[1742240438825,4.524,1946.3,1946.2,1.02772]
[1742240439228,5.55167,1946.3,1946.2,1.02772]
[1742240439424,6.26247,1946.3,1946.2,1.02772]
[1742240440729,5.46857304,1946.3,1946.2,1.02772]
[1742240441031,4.524,1946.3,1946.2,1.02772]
[1742240441335,1.3162,1946.3,1946.2,1.02772]
[1742240441824,1.3162,1946.3,1946.2,2.34362]
[1742240442931,2.34387,1946.3,1946.2,2.34362]
[1742240443131,1.02773,1946.2,1946.1,1.02774]
[1742240443328,1.02773,1946.2,1946.1,1.02777]
[1742240443329,1.3342,1946.2,1946.1,1.02777]
[1742240443524,2.0269,1946.2,1946.1,1.02777]
[1742240445027,2.0269,1946.2,1946.1,2.42467]
[1742240446838,2.0269,1946.2,1946.1,1.02777]
[1742240448227,2.0269,1946.2,1946.1,2.40247]
[1742240449137,2.97351043,1946.2,1946.1,2.40247]
[1742240449337,2.28081043,1946.2,1946.1,2.40247]
[1742240450341,1.3342,1946.2,1946.1,2.40247]
[1742240451444,2.28081043,1946.2,1946.1,2.40247]
[1742240451937,3.14919391,1946.2,1946.1,2.40247]
[1742240452140,4.17691391,1946.2,1946.1,2.40247]
[1742240452332,3.14919391,1946.2,1946.1,2.40247]
[1742240452739,4.17691391,1946.2,1946.1,2.40247]
[1742240452934,3.14919391,1946.2,1946.1,2.40247]
[1742240453333,4.17691391,1946.2,1946.1,2.40247]
[1742240453536,1.02783,1946.1,1945.9,3.8963]
[1742240453835,1.69103,1946.0,1945.9,1.02788]
[1742240454136,2.34503,1946.0,1945.9,1.02788]
[1742240454438,1.02788,1945.9,1945.7,0.672]
[1742240454637,4.23573,1945.8,1945.7,1.02798]
[1742240454938,5.10402788,1945.8,1945.7,1.02798]
[1742240455139,6.05063831,1945.8,1945.7,1.02798]
[1742240455735,5.02270831,1945.8,1945.7,1.02798]
[1742240455930,6.05063831,1945.8,1945.7,1.02798]
[1742240456131,5.02270831,1945.8,1945.7,1.02798]
[1742240456336,6.05063831,1945.8,1945.7,1.02798]
[1742240456526,7.44263831,1945.8,1945.7,1.02798]
[1742240458340,6.57434043,1945.8,1945.7,1.02798]
[1742240458839,5.62773,1945.8,1945.7,1.02798]
[1742240459239,1.02798,1945.7,1945.6,2.46120179]
[1742240459432,3.12828,1945.7,1945.6,2.46120179]
[1742240460336,2.1003,1945.7,1945.6,2.46120179]
[1742240460741,3.2078,1945.8,1945.7,1.02798]
[1742240461041,3.2078,1945.8,1945.7,3.08048]
[1742240461338,1.3424,1945.9,1945.8,1.02793]
[1742240461540,3.2078,1946.0,1945.9,1.02788]
[1742240461740,3.2078,1946.0,1945.9,1.74098]
[1742240462036,4.5502,1946.0,1945.9,1.74098]
[1742240462442,0.695,1946.2,1946.1,1.02777]
[1742240462842,2.66922292,1946.2,1946.1,1.02777]
[1742240463141,1.64150292,1946.2,1946.1,1.02777]
[1742240463540,2.66922292,1946.2,1946.1,1.02777]
[1742240463742,4.00532292,1946.2,1946.1,1.02777]
[1742240463937,4.00532292,1946.2,1946.1,2.44807]
[1742240464244,2.97760292,1946.2,1946.1,2.44807]
[1742240464442,2.0311,1946.2,1946.1,2.44807]
[1742240464743,3.05882,1946.2,1946.1,2.44807]
[1742240465440,3.92699289,1946.2,1946.1,2.44807]
[1742240465742,3.84582777,1946.2,1946.1,2.44807]
[1742240466041,4.87354777,1946.2,1946.1,2.44807]
[1742240466843,3.84582777,1946.2,1946.1,2.44807]
[1742240467044,4.87354777,1946.2,1946.1,2.44807]
[1742240469137,4.87354777,1946.2,1946.1,1.02777]
[1742240469532,1.02783,1946.1,1946.0,1.0278]
[1742240469738,1.02783,1946.0,1945.9,1.02783]
[1742240469937,1.89600289,1946.0,1945.9,1.02783]
[1742240470139,4.21445777,1946.0,1945.9,1.02783]
[1742240471146,2.39973,1946.0,1945.9,1.02783]
[1742240471740,3.26790289,1946.0,1945.9,1.02783]
[1742240472046,2.24007289,1946.0,1945.9,1.02783]
[1742240472344,3.26790289,1946.0,1945.9,1.02783]
[1742240472546,3.34628488,1946.0,1945.9,1.02783]
[1742240473044,0.94655488,1946.0,1945.9,1.02783]
[1742240473244,0.94655488,1946.0,1945.9,4.23563]
[1742240473547,1.3581,1946.1,1946.0,1.02783]
[1742240473745,3.408,1946.2,1946.1,1.02777]
[1742240473951,1.3581,1946.2,1946.1,1.70777]
[1742240474149,1.3581,1946.2,1946.1,3.04517]
[1742240474548,2.38582,1946.2,1946.1,3.04517]
[1742240474853,1.3581,1946.2,1946.1,3.04517]
[1742240475748,0.70100179,1946.4,1946.3,1.02767]
[1742240476353,0.00770179,1946.4,1946.3,1.70427]
[1742240476647,1.03532179,1946.4,1946.3,1.70427]
[1742240477039,2.42542179,1946.4,1946.3,1.70427]
[1742240477245,2.42542179,1946.4,1946.3,1.02767]
[1742240477743,1.02767,1946.3,1946.2,2.3558]
[1742240478044,4.76759841,1946.3,1946.2,1.0277]
[1742240478250,1.02772,1946.2,1946.1,3.12423]
[1742240478452,2.40332,1946.2,1946.1,3.12423]
[1742240479752,5.61112,1946.2,1946.1,3.12423]
[1742240480149,1.02777,1946.1,1946.0,1.02777]
[1742240480446,2.40337,1946.1,1946.0,1.02777]
[1742240480952,4.21851448,1946.1,1946.0,1.02777]
[1742240482848,3.34999841,1946.1,1946.0,1.02777]
[1742240483049,2.32222841,1946.1,1946.0,1.02777]
[1742240483248,0.94662841,1946.1,1946.0,1.02777]
[1742240483554,1.4366,1946.2,1945.9,4.6243]
[1742240483555,2.46432,1946.2,1946.1,1.02777]
[1742240483754,1.02772,1946.2,1946.1,1.02777]
[1742240484353,1.97434841,1946.2,1946.1,1.02777]
[1742240484956,1.97434841,1946.2,1946.0,1.3658]
[1742240484957,1.02777,1946.1,1946.0,1.3658]
[1742240486153,1.02777,1946.1,1946.0,2.39358]
[1742240487147,1.89621036,1946.1,1946.0,2.39358]
[1742240487549,0.86844036,1946.1,1946.0,2.39358]
[1742240487754,4.23555,1946.2,1946.1,1.02777]
[1742240487951,1.02775,1946.2,1946.1,2.46297]
[1742240488153,1.89625609,1946.2,1946.1,2.46297]
[1742240488554,2.84351684,1946.2,1946.1,1.4352]
[1742240488857,2.84351684,1946.2,1946.1,2.46297]
[1742240489056,6.05131684,1946.2,1946.1,2.46297]
[1742240494255,1.02783,1946.1,1945.9,2.56958]
[1742240494558,2.58393609,1946.1,1946.0,1.02777]
[1742240495261,3.53119684,1946.1,1946.0,2.46107]
[1742240495655,1.02793,1945.8,1945.7,4.23575]
[1742240495963,1.02798,1945.7,1945.6,1.03569179]
[1742240496860,1.02798,1945.7,1945.6,2.40069179]
[1742240497157,1.97522075,1945.8,1945.7,1.02798]
[1742240497359,5.18302075,1945.8,1945.7,1.02798]
[1742240497958,1.97522075,1945.8,1945.7,1.02798]
[1742240498464,3.42102075,1945.8,1945.7,1.02798]
[1742240498665,2.47376,1945.8,1945.7,2.39298]
[1742240499267,1.4458,1945.8,1945.7,2.39298]
[1742240499562,2.47373,1945.8,1945.7,2.39298]
[1742240500162,1.02798,1945.7,1945.6,1.74361179]
[1742240500362,2.42258,1945.7,1945.6,1.03574179]
[1742240500566,1.02804,1945.6,1945.5,1.02805]
[1742240500754,2.42264,1945.6,1945.5,1.02805]
[1742240500960,5.63044,1945.6,1945.5,1.02805]
[1742240501659,4.6024,1945.6,1945.5,1.02805]
[1742240501859,1.3946,1945.6,1945.5,1.72405]
[1742240502360,6.6148,1945.9,1945.7,1.02796]
[1742240502658,2.35849,1945.8,1945.7,1.02796]
[1742240502864,3.30506892,1945.8,1945.7,1.02796]
[1742240503757,4.17295271,1945.8,1945.7,1.02796]
[1742240503964,1.02804,1945.7,1945.6,1.028]
[1742240504157,1.02804,1945.7,1945.5,3.26613]
[1742240504158,1.02804,1945.6,1945.5,1.02806]
[1742240504359,1.74594,1945.6,1945.5,1.02806]
[1742240504565,3.07644,1945.6,1945.5,1.02806]
[1742240505669,1.02809,1945.5,1945.4,1.03581179]
[1742240505858,5.81609,1945.5,1945.4,1.03581179]
[1742240506058,5.81609,1945.5,1945.4,0.00770179]
[1742240506666,1.0283,1945.2,1945.0,3.97799]
[1742240506867,1.0283,1945.2,1945.1,2.40365]
[1742240507458,1.02845,1944.9,1944.8,1.02841]
[1742240507762,4.23625,1944.9,1944.8,1.02841]
[1742240509466,4.23621,1944.9,1944.8,1.02841]
[1742240509666,0.00770179,1945.0,1944.9,1.02841]
[1742240510567,0.00770179,1945.0,1944.9,1.68221]
[1742240513470,0.00770179,1945.0,1944.9,3.09601]
[1742240515271,1.03605179,1945.0,1944.9,3.09601]
[1742240517163,1.03605179,1945.0,1944.9,2.44221]
[1742240517569,1.03605179,1945.0,1944.9,1.4138]
[1742240517769,1.02846,1944.8,1944.7,1.69277179]
[1742240518073,1.02846,1944.8,1944.7,3.13697179]
[1742240518272,1.02846,1944.8,1944.7,0.00770179]
[1742240518463,6.29826,1944.8,1944.7,1.03621179]
[1742240519570,6.29826,1944.8,1944.7,0.00770179]
[1742240519871,6.29826,1944.8,1944.7,1.03621179]
[1742240520172,5.61196,1944.8,1944.7,1.03621179]
[1742240520368,4.5835,1944.8,1944.7,1.03621179]
[1742240520869,3.21550179,1945.0,1944.7,0.00770179]
[1742240521065,4.53730179,1945.0,1944.8,0.6553]
[1742240521373,2.35021,1944.9,1944.8,1.68376]
[1742240522073,3.00841,1944.9,1944.8,1.68376]
[1742240522768,1.3218,1944.9,1944.8,1.68376]
[1742240522975,1.02841,1944.9,1944.8,1.68376]
[1742240523276,4.24390179,1945.0,1944.9,1.02841]
[1742240523575,5.63510179,1945.0,1944.9,1.72621]
[1742240524675,1.39890179,1945.0,1944.9,1.72621]
[1742240524875,0.00770179,1945.0,1944.9,1.72621]
[1742240529679,0.00770179,1945.0,1944.9,5.13321]
[1742240530978,0.00770179,1945.0,1944.9,1.72621]
[1742240531278,1.31680179,1945.0,1944.9,1.72621]
[1742240531580,0.00770179,1945.0,1944.9,1.72621]
[1742240536285,0.00770179,1945.0,1944.9,5.13321]
[1742240538387,0.00770179,1945.0,1944.9,6.48261]
[1742240542588,1.4023,1945.2,1945.1,1.0283]
[1742240543189,1.4023,1945.2,1945.1,1.7121]
[1742240545390,1.4023,1945.2,1945.1,1.0283]
[1742240545591,1.0283,1945.1,1945.0,2.41452]
[1742240545791,0.6686,1945.1,1945.0,2.41452]
[1742240546196,42.4969,1945.1,1945.0,2.41452]
[1742240546394,43.8028,1945.1,1945.0,2.41452]
[1742240546996,1.9745,1945.1,1945.0,2.41452]
[1742240548700,1.3059,1945.1,1945.0,2.41452]
[1742240550193,6.62250179,1945.3,1945.2,1.02825]
[1742240550392,7.30080179,1945.3,1945.2,1.02825]
[1742240550600,9.27690214,1945.3,1945.2,1.02825]
[1742240551199,1.02825,1945.2,1945.1,1.02828]
[1742240551403,1.02825,1945.2,1945.0,1.02831]
[1742240551404,1.02833,1945.1,1945.0,1.02831]
[1742240552401,2.44263,1945.1,1945.0,1.02831]
[1742240555109,1.02835,1945.0,1944.9,1.02835]
[1742240555294,4.70860813,1945.0,1944.9,1.02835]
[1742240555703,5.65650848,1945.0,1944.9,1.02835]
[1742240556206,4.62815848,1945.0,1944.9,1.02835]
[1742240556398,3.75850035,1945.0,1944.9,1.02835]
[1742240556603,3.75850035,1945.0,1944.9,2.41955]
[1742240557294,2.34830035,1945.0,1944.9,2.41955]
[1742240557704,1.4004,1945.0,1944.9,2.41955]
[1742240558500,0.94790035,1945.2,1945.1,1.0283]
[1742240558808,2.35910035,1945.2,1945.1,1.0283]
[1742240559199,1.4112,1945.2,1945.1,2.458]
[1742240559407,1.61980035,1945.4,1945.3,1.0282]